fUSD/lending_fUSD_20240913
["ID","MTS","AMOUNT","RATE_DAILY","PERIOD"]
[338041583,1726250177719,650.22,0.00010189,2]
[338041584,1726250177941,650.22,0.00012453,2]
[338041585,1726250259290,168.54,0.00012071,2]
[338041586,1726250294182,635.29,0.00012071,2]
[338041587,1726250329416,250.0,0.00012071,2]
[338041588,1726250563771,638.57,0.00012087,2]
[338041592,1726250592134,16494.02,0.00012105,2]
[338041595,1726250599608,1000.0,0.00012105,2]
[338041596,1726250638605,167.0,0.00012445,2]
[338041597,1726250647360,171.35,0.00012048,2]
[338041598,1726250659567,250.0,0.00012048,2]
[338041599,1726250712621,150.0,0.00011688,2]
[338041600,1726250763520,585.19,0.0001016,2]
[338041601,1726250763734,585.19,0.00012423,2]
[338041617,1726251019297,210.89,0.0001209,2]
[338041629,1726251031554,-921.28055295,0.00012679,2]
[338041630,1726251031563,-150.0,0.00012773,2]
[338041631,1726251031573,-150.0,0.00012776,2]
[338041632,1726251031582,-1075.8716,0.000128,2]
[338041633,1726251031591,-626.26063862,0.000128,2]
[338041634,1726251031654,-1873.73936138,0.000128,2]
[338041635,1726251031664,-2959.2585,0.000128,2]
[338041636,1726251031673,-150.0,0.0001283,2]
[338041637,1726251031682,-666.12389189,0.00012833,2]
[338041638,1726251031691,-551.31383,0.0001287,2]
[338041639,1726251031700,-721.53533603,0.0001289,2]
[338041640,1726251031709,-150.0,0.00012899,2]
[338041641,1726251031719,-9080.89,0.000129,2]
[338041642,1726251031733,-1345.50274565,0.000129,2]
[338041643,1726251031747,-900.58725435,0.000129,2]
[338041644,1726251031760,-1800.31225081,0.000129,2]
[338041645,1726251031781,-33003.12494919,0.000129,2]
[338041648,1726251031803,-157208.1672,0.000129,2]
[338041650,1726251031815,-10930.3533,0.000129,2]
[338041652,1726251031826,-263.8849,0.000129,2]
[338041653,1726251031837,-1451.1123,0.000129,2]
[338041654,1726251031848,-2446.0567,0.000129,2]
[338041655,1726251031859,-829.286,0.000129,2]
[338041656,1726251031869,-200.039,0.000129,2]
[338041657,1726251031879,-164.72161916,0.000129,2]
[338041658,1726251031889,-499.99,0.000129,2]
[338041659,1726251031899,-394.71803536,0.000129,2]
[338041660,1726251031909,-355.34774474,0.000129,2]
[338041661,1726251031921,-473.2268298,0.000129,2]
[338041662,1726251031931,-2699.79592,0.00012962,2]
[338041663,1726251031942,-3826.401192,0.00012962,2]
[338041664,1726251031952,-926.174282,0.00012962,2]
[338041665,1726251031963,-305.429327,0.00012962,2]
[338041666,1726251031974,-158.31767819,0.0001299,2]
[338041667,1726251031985,-158.31767819,0.0001299,2]
[338041668,1726251031995,-151.97,0.0001299,2]
[338041669,1726251032006,-151.97,0.0001299,2]
[338041670,1726251032018,-150.0,0.00012991,2]
[338041671,1726251032029,-4051.2815177,0.00012996,2]
[338041672,1726251032047,-1423.2167226,0.00012996,2]
[338041673,1726251032058,-354.08311211,0.00012996,2]
[338041674,1726251032068,-2946.8213424,0.00012996,2]
[338041675,1726251032080,-1095.71617956,0.00012998,2]
[338041676,1726251032091,-375.80247792,0.00012999,2]
[338041677,1726251032101,-499.99999999,0.00012999,2]
[338041678,1726251032112,-300.0,0.00012999,2]
[338041679,1726251032124,-513.86335129,0.00012999,2]
[338041680,1726251032136,-500.0,0.00012999,2]
[338041681,1726251032147,-572.0,0.00013,2]
[338041682,1726251032158,-207589.27458767,0.00013,2]
[338041683,1726251032169,-23624.42206467,0.00013,2]
[338041690,1726251037586,-2500.0,0.000128,2]
[338041691,1726251037596,-508.0,0.00013,2]
[338041692,1726251037606,-439.32918034,0.00013,2]
[338041693,1726251037685,-12210.02450193,0.00013,2]
[338041694,1726251037697,-618.74932003,0.00013,2]
[338041695,1726251037713,-393.01182328,0.00013,2]
[338041696,1726251037804,-8208.53520196,0.00013,2]
[338041697,1726251037816,-26575.56428383,0.00013,2]
[338041698,1726251037828,-7214.73959698,0.00013,2]
[338041699,1726251037840,-830.76722118,0.00013,2]
[338041700,1726251037854,-777.16020434,0.00013,2]
[338041701,1726251037867,-1260.1017658,0.00013,2]
[338041702,1726251037879,-312.22017178,0.00013,2]
[338041703,1726251037891,-1080.68345125,0.00013,2]
[338041704,1726251037902,-253.7732008,0.00013,2]
[338041853,1726251039562,-701.66503495,0.00013,2]
[338041855,1726251039573,-1209.49724686,0.00013,2]
[338041857,1726251039587,-1463.47779084,0.00013,2]
[338041860,1726251039599,-20776.22156443,0.00013,2]
[338041862,1726251039613,-13471.89695095,0.00013,2]
[338041866,1726251039639,-572.19529931,0.00013,2]
[338041868,1726251039651,-660753.59125402,0.00013,2]
[338041870,1726251039660,-25229.81093463,0.00013,2]
[338041872,1726251039670,-2958.4931392,0.00013,2]
[338041874,1726251039680,-2578809.7014878,0.00013,2]
[338041876,1726251039690,-416735.42185258,0.00013,2]
[338042186,1726251042802,-1612.32159237,0.00013,2]
[338042189,1726251042815,-369.04840763,0.00013,2]
[338042486,1726251045701,-14560.61554981,0.00013,2]
[338043118,1726251085905,153.52,0.00010959,2]
[338043119,1726251164075,250.0,0.00012336,2]
[338043120,1726251164675,1096.13,0.00012336,2]
[338043121,1726251185019,250.0,0.00012336,2]
[338043122,1726251196686,200.0,0.00012336,2]
[338043123,1726251210811,192.86,0.00012336,2]
[338043124,1726251232770,1000.0,0.00012349,2]
[338043125,1726251278577,155.25,0.00012352,2]
[338043126,1726251278795,155.25,0.00012359,2]
[338043127,1726251279040,155.25,0.00012366,2]
[338043128,1726251279275,155.25,0.00012373,2]
[338043129,1726251279487,155.25,0.00012379,2]
[338043130,1726251279855,155.25,0.00012386,2]
[338043131,1726251280097,155.25,0.00012393,2]
[338043132,1726251280332,155.25,0.000124,2]
[338043133,1726251280531,155.25,0.00012407,2]
[338043134,1726251280781,155.25,0.00012414,2]
[338043135,1726251377716,545.27,0.00010338,2]
[338043136,1726251378395,545.27,0.00012602,2]
[338043137,1726251451581,618.2,0.00012204,2]
[338043138,1726251566322,1050.0,0.00011,2]
[338043139,1726251633960,174.16,0.00012037,2]
[338043140,1726251700139,250.0,0.00012041,2]
[338043141,1726251705361,192.86,0.00012041,2]
[338043142,1726251736539,3964.15,0.00012059,2]
[338043143,1726251750448,200.0,0.00012041,2]
[338043144,1726251913441,243.10509471,0.00012609,2]
[338043145,1726252003518,490.74,0.00010144,2]
[338043146,1726252004352,490.74,0.00012408,2]
[338043147,1726252022173,7619.9559316,0.0001228,2]
[338043158,1726252196429,508.23,0.00012059,2]
[338043159,1726252212211,250.0,0.00012024,2]
[338043160,1726252231041,167.0,0.00012445,2]
[338043164,1726252237743,-300.0,0.00012698,2]
[338043165,1726252237753,-10120.80222486,0.00012699,2]
[338043166,1726252237764,-640.62855304,0.00012699,2]
[338043167,1726252237773,-167.0,0.00012723,2]
[338043168,1726252237790,-151.97,0.00012789,2]
[338043169,1726252237800,-500.0,0.00012798,2]
[338043170,1726252237809,-500.0,0.00012798,2]
[338043171,1726252237818,-428.75423397,0.00012798,2]
[338043172,1726252237827,-150.0,0.00012798,2]
[338043173,1726252237836,-3118.74575262,0.00012798,2]
[338043174,1726252237845,-2111.03986037,0.00012799,2]
[338043175,1726252237856,-7146.2938,0.00012799,2]
[338043176,1726252237867,-17006.65070178,0.00012799,2]
[338043177,1726252237878,-556.4527113,0.00012799,2]
[338043178,1726252237888,-352.52727591,0.00012799,2]
[338043179,1726252237899,-526.9666355,0.00012799,2]
[338043180,1726252237910,-1258.75000001,0.00012799,2]
[338043181,1726252237921,-752.92921906,0.00012799,2]
[338043182,1726252237937,-358.48667185,0.00012799,2]
[338043329,1726252239668,-1141.21610966,0.00012799,2]
[338043331,1726252239679,-11953.20000001,0.00012799,2]
[338043333,1726252239691,-7827.40409999,0.00012799,2]
[338043349,1726252239831,-594927.56859372,0.00012799,2]
[338043351,1726252239842,-1334.664,0.00012799,2]
[338043353,1726252239853,-2500.2569,0.000128,2]
[338043355,1726252239863,-72044.1348,0.000128,2]
[338043357,1726252239874,-1237.45124,0.0001287,2]
[338043359,1726252239884,-800.876,0.0001288,2]
[338043361,1726252239895,-199.523,0.00012893,2]
[338043383,1726252240113,-499.99,0.00012893,2]
[338043385,1726252240123,-164.84463974,0.00012899,2]
[338043387,1726252240133,-2334.39,0.000129,2]
[338043390,1726252240143,-1004.3309,0.000129,2]
[338043391,1726252240152,-27662.2422,0.000129,2]
[338043394,1726252240162,-500.0,0.000129,2]
[338043396,1726252240172,-500.0,0.000129,2]
[338043398,1726252240182,-107646.26982519,0.000129,2]
[338043400,1726252240191,-193.64158531,0.000129,2]
[338043401,1726252240200,-263.14535692,0.000129,2]
[338043403,1726252240209,-10761.43077784,0.00012944,2]
[338043405,1726252240218,-183.879101,0.00012962,2]
[338043407,1726252240228,-838.84484458,0.00012984,3]
[338043409,1726252240237,-291.0,0.00012986,2]
[338043411,1726252240246,-7703.2788086,0.00012996,2]
[338043414,1726252240256,-976.9532342,0.00012996,2]
[338043416,1726252240267,-525.0,0.00012999,2]
[338043418,1726252240276,-2289.64446378,0.00013,2]
[338043420,1726252240286,-1096.91813255,0.00013,2]
[338043422,1726252240296,-90321.57088169,0.00013,2]
[338043424,1726252240305,-247.62511432,0.00013,2]
[338043425,1726252240314,-248442.37522578,0.00013,2]
[338043427,1726252240324,-1928006.53041302,0.00013,2]
[338043429,1726252240333,-210825.21551963,0.00013,2]
[338043431,1726252240342,-440.31,0.00013,2]
[338043433,1726252240352,-151.0,0.00013,2]
[338043435,1726252240361,-151.0,0.00013,2]
[338043437,1726252240370,-151.0,0.00013,2]
[338043439,1726252240382,-151.0,0.00013,2]
[338043441,1726252240392,-151.0,0.00013,2]
[338043443,1726252240401,-151.0,0.00013,2]
[338043445,1726252240410,-151.0,0.00013,2]
[338043447,1726252240419,-151.0,0.00013,2]
[338043449,1726252240429,-151.0,0.00013,2]
[338043451,1726252240439,-151.0,0.00013,2]
[338043453,1726252240448,-151.0,0.00013,2]
[338043455,1726252240459,-151.0,0.00013,2]
[338043457,1726252240469,-151.0,0.00013,2]
[338043459,1726252240478,-151.0,0.00013,2]
[338043461,1726252240487,-151.0,0.00013,2]
[338043463,1726252240496,-151.0,0.00013,2]
[338043465,1726252240505,-151.0,0.00013,2]
[338043467,1726252240514,-151.0,0.00013,2]
[338043469,1726252240523,-151.0,0.00013,2]
[338043471,1726252240534,-151.0,0.00013,2]
[338043473,1726252240543,-151.0,0.00013,2]
[338043475,1726252240553,-151.0,0.00013,2]
[338043477,1726252240562,-185.943234,0.00013,2]
[338043479,1726252240571,-151.0,0.00013,2]
[338043481,1726252240580,-151.0,0.00013,2]
[338043483,1726252240589,-151.0,0.00013,2]
[338043485,1726252240598,-151.0,0.00013,2]
[338043487,1726252240607,-151.0,0.00013,2]
[338043489,1726252240616,-269.94504,0.00013,2]
[338043491,1726252240625,-151.0,0.00013,2]
[338043493,1726252240634,-151.0,0.00013,2]
[338043495,1726252240643,-151.0,0.00013,2]
[338043496,1726252240652,-151.0,0.00013,2]
[338043498,1726252240661,-151.0,0.00013,2]
[338043500,1726252240670,-228.578368,0.00013,2]
[338043502,1726252240679,-151.0,0.00013,2]
[338043504,1726252240688,-151.0,0.00013,2]
[338043506,1726252240697,-151.0,0.00013,2]
[338043508,1726252240706,-2000.0,0.00013,2]
[338043510,1726252240715,-200.0,0.00013,2]
[338043512,1726252240724,-1100.0,0.00013,2]
[338043514,1726252240733,-151.0,0.00013,2]
[338043516,1726252240742,-151.0,0.00013,2]
[338043518,1726252240751,-151.0,0.00013,2]
[338043541,1726252240949,-151.0,0.00013,2]
[338043543,1726252240959,-1134.131747,0.00013,2]
[338043545,1726252240969,-1134.131747,0.00013,2]
[338043547,1726252240978,-151.0,0.00013,2]
[338043549,1726252240987,-151.0,0.00013,2]
[338043551,1726252240996,-218.737196,0.00013,2]
[338043553,1726252241005,-151.0,0.00013,2]
[338043555,1726252241014,-151.0,0.00013,2]
[338043557,1726252241023,-151.0,0.00013,2]
[338043559,1726252241034,-151.0,0.00013,2]
[338043560,1726252241047,-245.695207,0.00013,2]
[338043562,1726252241057,-245.695207,0.00013,2]
[338043564,1726252241065,-151.0,0.00013,2]
[338043566,1726252241074,-184.053695,0.00013,2]
[338043568,1726252241083,-206.738762,0.00013,2]
[338043570,1726252241092,-206.738762,0.00013,2]
[338043572,1726252241101,-151.0,0.00013,2]
[338043574,1726252241110,-220.013138,0.00013,2]
[338043576,1726252241119,-36804.60791834,0.00013,2]
[338043578,1726252241128,-301.167058,0.00013,2]
[338043580,1726252241138,-1010.8726,0.00013,2]
[338043582,1726252241148,-1413025.08589534,0.00013,2]
[338043584,1726252241157,-151.0,0.00013,2]
[338043586,1726252241166,-1000.0,0.00013,2]
[338043588,1726252241175,-1000.0,0.00013,2]
[338043590,1726252241184,-151.0,0.00013,2]
[338043592,1726252241193,-151.0,0.00013,2]
[338043594,1726252241202,-151.0,0.00013,2]
[338043596,1726252241211,-277.60458,0.00013,2]
[338043598,1726252241220,-466.968382,0.00013,2]
[338043600,1726252241229,-466.968382,0.00013,2]
[338043602,1726252241239,-151.0,0.00013,2]
[338043604,1726252241248,-296.65275,0.00013,2]
[338043606,1726252241257,-151.0,0.00013,2]
[338043608,1726252241266,-296.65275,0.00013,2]
[338043610,1726252241276,-226.0,0.00013,2]
[338043612,1726252241291,-151.0,0.00013,2]
[338043614,1726252241300,-565.5,0.00013,2]
[338043616,1726252241310,-151.0,0.00013,2]
[338043618,1726252241319,-151.0,0.00013,2]
[338043620,1726252241328,-359.0,0.00013,2]
[338043622,1726252241337,-718.5,0.00013,2]
[338043624,1726252241347,-2902.439561,0.00013,2]
[338043626,1726252241356,-151.0,0.00013,2]
[338043628,1726252241365,-2902.439561,0.00013,2]
[338043630,1726252241375,-151.0,0.00013,2]
[338043632,1726252241388,-151.0,0.00013,2]
[338043634,1726252241398,-177.446993,0.00013,2]
[338043636,1726252241407,-151.0,0.00013,2]
[338043638,1726252241416,-177.446993,0.00013,2]
[338043640,1726252241426,-189.567455,0.00013,2]
[338043642,1726252241435,-189.567455,0.00013,2]
[338043644,1726252241444,-151.0,0.00013,2]
[338043646,1726252241453,-151.0,0.00013,2]
[338043648,1726252241465,-151.0,0.00013,2]
[338043650,1726252241476,-1468.2997024,0.00013005,2]
[338043652,1726252241486,-151.0,0.00013014,2]
[338043653,1726252241495,-151.0,0.00013014,2]
[338043655,1726252241505,-151.0,0.00013014,2]
[338043657,1726252241514,-151.0,0.00013014,2]
[338043659,1726252241524,-151.0,0.00013014,2]
[338043661,1726252241535,-151.0,0.00013014,2]
[338043663,1726252241545,-151.0,0.00013014,2]
[338043665,1726252241555,-151.0,0.00013014,2]
[338043667,1726252241564,-151.0,0.00013014,2]
[338043669,1726252241573,-220.122148,0.00013014,2]
[338043671,1726252241582,-5055.86150293,0.0001305,2]
[338043673,1726252241592,-569.779,0.0001305,2]
[338043675,1726252241601,-500.0,0.00013082,2]
[338043677,1726252241611,-5000.0,0.000131,2]
[338043679,1726252241621,-500.0,0.000131,2]
[338043681,1726252241630,-500.0,0.000131,2]
[338043683,1726252241640,-500.0,0.000131,2]
[338043685,1726252241649,-500.0,0.000131,2]
[338043687,1726252241659,-151.01,0.000131,2]
[338043689,1726252241668,-422.33,0.000131,2]
[338043691,1726252241677,-151.15,0.000131,2]
[338043693,1726252241686,-224.59,0.000131,2]
[338043695,1726252241696,-302.11,0.000131,2]
[338043697,1726252241705,-422.42,0.000131,2]
[338043699,1726252241714,-752.75,0.000131,2]
[338043701,1726252241723,-533.47,0.000131,2]
[338043703,1726252241732,-357.37,0.000131,2]
[338043705,1726252241741,-752.75,0.000131,2]
[338043707,1726252241750,-150.0,0.000131,2]
[338043709,1726252241760,-241.38,0.000131,2]
[338043711,1726252241769,-422.42,0.000131,2]
[338043713,1726252241779,-854.0,0.000131,2]
[338043715,1726252241789,-422.42,0.000131,2]
[338043717,1726252241799,-150.0,0.000131,2]
[338043719,1726252241808,-752.75,0.000131,2]
[338043721,1726252241817,-150.0,0.000131,2]
[338043723,1726252241826,-752.75,0.000131,2]
[338043725,1726252241835,-422.42,0.000131,2]
[338043727,1726252241844,-150.34,0.000131,2]
[338043729,1726252241853,-422.42,0.000131,2]
[338043731,1726252241862,-204.31,0.000131,2]
[338043733,1726252241871,-752.75,0.000131,2]
[338043735,1726252241881,-182.9,0.000131,2]
[338043737,1726252241890,-150.0,0.000131,2]
[338043739,1726252241900,-302.07,0.000131,2]
[338043741,1726252241909,-427.8,0.000131,2]
[338043743,1726252241917,-975.85,0.000131,2]
[338043745,1726252241926,-504.86,0.000131,2]
[338043747,1726252241935,-2000.0,0.0001313,2]
[338043749,1726252241944,-200.0,0.0001313,2]
[338043751,1726252241953,-152.0,0.00013154,3]
[338043753,1726252241963,-10761.43077784,0.00013188,2]
[338043755,1726252241972,-5000.0,0.000132,2]
[338043757,1726252241981,-150.0,0.000132,2]
[338043759,1726252241990,-150.0,0.000132,2]
[338043761,1726252241999,-150.0,0.000132,2]
[338043763,1726252242008,-150.0,0.000132,2]
[338043765,1726252242018,-150.0,0.000132,2]
[338043767,1726252242027,-150.0,0.000132,2]
[338043769,1726252242037,-150.0,0.000132,2]
[338043771,1726252242046,-150.0,0.000132,2]
[338043773,1726252242055,-150.0,0.000132,2]
[338043775,1726252242064,-150.0,0.000132,2]
[338043777,1726252242073,-154.76,0.000132,2]
[338043779,1726252242082,-155.57775669,0.000132,2]
[338043781,1726252242091,-151.0,0.000132,2]
[338043783,1726252242100,-151.0,0.000132,2]
[338043785,1726252242109,-151.0,0.000132,2]
[338043787,1726252242118,-151.0,0.000132,2]
[338043789,1726252242127,-151.0,0.000132,2]
[338043791,1726252242135,-151.0,0.000132,2]
[338043793,1726252242145,-151.0,0.000132,2]
[338043795,1726252242154,-151.0,0.000132,2]
[338043797,1726252242164,-1146.0,0.00013201,2]
[338043799,1726252242173,-9312.0,0.00013201,2]
[338043801,1726252242183,-2000.0,0.00013261,2]
[338043803,1726252242194,-200.0,0.00013261,2]
[338043805,1726252242204,-222.0,0.0001329,2]
[338043807,1726252242214,-151.0,0.00013299,2]
[338043809,1726252242224,-151.0,0.00013299,2]
[338043811,1726252242233,-151.0,0.00013299,2]
[338043813,1726252242243,-151.0,0.00013299,2]
[338043815,1726252242252,-268.249888,0.00013299,2]
[338043817,1726252242261,-268.249888,0.00013299,2]
[338043819,1726252242271,-495.589278,0.00013299,2]
[338043821,1726252242280,-151.0,0.00013299,2]
[338043823,1726252242289,-495.589278,0.00013299,2]
[338043825,1726252242299,-151.0,0.00013299,2]
[338043827,1726252242308,-151.0,0.00013299,2]
[338043829,1726252242317,-151.0,0.00013299,2]
[338043831,1726252242326,-151.0,0.00013299,2]
[338043832,1726252242335,-151.0,0.00013299,2]
[338043833,1726252242344,-151.0,0.00013299,2]
[338043835,1726252242354,-151.0,0.00013299,2]
[338043837,1726252242363,-151.0,0.00013299,2]
[338043838,1726252242372,-151.0,0.00013299,2]
[338043839,1726252242382,-151.0,0.00013299,2]
[338043840,1726252242393,-151.0,0.00013299,2]
[338043841,1726252242402,-232.800948,0.00013299,2]
[338043842,1726252242411,-151.0,0.00013299,2]
[338043843,1726252242420,-151.0,0.00013299,2]
[338043844,1726252242430,-164.381114,0.00013299,2]
[338043845,1726252242439,-164.381114,0.00013299,2]
[338043846,1726252242448,-159.585635,0.00013299,2]
[338043847,1726252242459,-151.0,0.00013299,2]
[338043848,1726252242468,-413.458968,0.00013299,2]
[338043849,1726252242477,-159.585635,0.00013299,2]
[338043850,1726252242486,-413.458968,0.00013299,2]
[338043851,1726252242495,-337.853607,0.00013299,2]
[338043853,1726252242504,-337.853607,0.00013299,2]
[338043856,1726252242513,-151.0,0.00013299,2]
[338043860,1726252242522,-479.229,0.00013299,2]
[338043863,1726252242532,-479.229,0.00013299,2]
[338043865,1726252242541,-428.74385,0.00013299,2]
[338043868,1726252242551,-428.74385,0.00013299,2]
[338043870,1726252242560,-158.668844,0.00013299,2]
[338043871,1726252242569,-158.668844,0.00013299,2]
[338043873,1726252242579,-150.0,0.000133,2]
[338043875,1726252242588,-150.0,0.000133,2]
[338043877,1726252242597,-170.124,0.000133,2]
[338043879,1726252242606,-200.231,0.000133,2]
[338043881,1726252242616,-555.208,0.000133,2]
[338043883,1726252242625,-1901.0,0.000133,2]
[338043885,1726252242634,-3344.0,0.000133,2]
[338043887,1726252242643,-806.0,0.000133,2]
[338043889,1726252242652,-248.0,0.000133,2]
[338043892,1726252242661,-1926.0,0.000133,2]
[338043894,1726252242671,-1125.0,0.000133,2]
[338043896,1726252242679,-1079.0,0.000133,2]
[338043898,1726252242688,-1547.0,0.000133,2]
[338043900,1726252242697,-1261.0,0.000133,2]
[338043902,1726252242706,-448.0,0.000133,2]
[338043904,1726252242715,-5862.0,0.000133,2]
[338043906,1726252242724,-289.0,0.000133,2]
[338043908,1726252242733,-624.0,0.000133,2]
[338043910,1726252242743,-5000.0,0.000133,2]
[338043912,1726252242751,-180.42,0.00013327,2]
[338043914,1726252242760,-716.73,0.0001337,2]
[338043916,1726252242769,-532.52,0.0001337,2]
[338043918,1726252242778,-151.0,0.0001337,2]
[338043920,1726252242788,-1237.45125,0.0001339,2]
[338043922,1726252242797,-10761.43077784,0.00013433,2]
[338043924,1726252242806,-200.0,0.00013546,2]
[338043926,1726252242815,-508.23,0.00013566,2]
[338043928,1726252242824,-794.0,0.00013582,2]
[338043930,1726252242833,-796.0,0.00013582,2]
[338043932,1726252242842,-5000.0,0.000136,2]
[338043934,1726252242851,-151.0,0.000136,2]
[338043936,1726252242860,-151.0,0.000136,2]
[338043938,1726252242869,-151.0,0.000136,2]
[338043940,1726252242878,-151.0,0.000136,2]
[338043942,1726252242887,-10761.43077784,0.00013677,2]
[338043944,1726252242896,-533.0,0.00013699,2]
[338043946,1726252242905,-151.0,0.00013699,2]
[338043948,1726252242914,-151.0,0.00013699,2]
[338043950,1726252242923,-150.0,0.00013699,2]
[338043952,1726252242932,-200.0,0.00013699,2]
[338043954,1726252242941,-546.08,0.00013699,2]
[338043956,1726252242950,-1893.507064,0.00013699,2]
[338043958,1726252242960,-1893.507064,0.00013699,2]
[338043960,1726252242969,-2751.0,0.00013699,2]
[338043962,1726252242978,-39674.37,0.00013699,2]
[338043963,1726252242987,-231.09,0.00013699,2]
[338043965,1726252242995,-500.0,0.00013699,2]
[338043967,1726252243004,-283.559053,0.00013699,2]
[338043969,1726252243013,-151.0,0.00013699,2]
[338043971,1726252243022,-151.0,0.00013699,2]
[338043973,1726252243031,-151.0,0.00013699,2]
[338043975,1726252243040,-151.0,0.00013699,2]
[338043977,1726252243049,-177.6767,0.00013699,2]
[338043979,1726252243058,-177.6767,0.00013699,2]
[338043981,1726252243067,-151.0,0.00013699,2]
[338043983,1726252243076,-151.0,0.00013699,2]
[338043985,1726252243085,-569.779,0.00013735,2]
[338043987,1726252243094,-167.0,0.0001376,2]
[338043989,1726252243103,-103614.99630514,0.0001379,2]
[338043991,1726252243112,-151.0,0.0001379,2]
[338043993,1726252243122,-151.0,0.0001379,2]
[338043995,1726252243131,-151.0,0.0001379,2]
[338043997,1726252243140,-151.0,0.0001379,2]
[338043999,1726252243149,-151.0,0.0001379,2]
[338044001,1726252243159,-151.0,0.0001379,2]
[338044003,1726252243169,-151.0,0.0001379,2]
[338044005,1726252243179,-151.407304,0.0001379,2]
[338044007,1726252243188,-151.0,0.0001379,2]
[338044009,1726252243197,-151.0,0.0001379,2]
[338044011,1726252243207,-162.0,0.0001379,2]
[338044013,1726252243215,-151.0,0.0001379,2]
[338044016,1726252243225,-151.0,0.0001379,2]
[338044018,1726252243234,-151.0,0.0001379,2]
[338044020,1726252243243,-151.0,0.0001379,2]
[338044022,1726252243252,-151.0,0.00013791,2]
[338044024,1726252243262,-151.0,0.00013791,2]
[338044026,1726252243271,-151.0,0.00013791,2]
[338044028,1726252243282,-151.0,0.00013791,2]
[338044030,1726252243291,-151.0,0.00013791,2]
[338044032,1726252243300,-151.0,0.00013791,2]
[338044034,1726252243309,-151.0,0.00013791,2]
[338044036,1726252243318,-372.335124,0.00013791,2]
[338044038,1726252243327,-151.0,0.00013791,2]
[338044040,1726252243337,-372.335124,0.00013791,2]
[338044042,1726252243348,-258.258694,0.00013791,2]
[338044044,1726252243358,-1640.1833904,0.00013791,2]
[338044046,1726252243367,-6724.9645029,0.00013791,2]
[338044048,1726252243376,-852.8804401,0.00013791,2]
[338044050,1726252243388,-180.42,0.00013798,2]
[338044052,1726252243397,-151.0,0.000138,2]
[338044054,1726252243406,-151.0,0.000138,2]
[338044056,1726252243415,-151.0,0.000138,2]
[338044058,1726252243426,-156.442117,0.000138,2]
[338044060,1726252243436,-151.0,0.000138,2]
[338044062,1726252243445,-151.0,0.000138,2]
[338044064,1726252243454,-274.615934,0.000138,2]
[338044066,1726252243465,-151.0,0.000138,2]
[338044068,1726252243475,-151.0,0.000138,2]
[338044070,1726252243485,-151.0,0.000138,2]
[338044072,1726252243494,-177.6767,0.000138,2]
[338044074,1726252243503,-177.6767,0.000138,2]